bitfinex-derivatives/quotes_SOLF0:USTF0_20250216
["timestamp","ask_amount","ask_price","bid_price","bid_amount"]
[1739743521492,5.2863,189.14,189.09,5.2875]
[1739743522297,37.81392699,189.13,189.08,5.2879]
[1739743522596,32.52722699,189.13,189.08,5.2879]
[1739743522798,0.04029063,189.12,189.09,0.0334706]
[1739743523197,5.32719063,189.12,189.09,0.0334706]
[1739743524888,0.04029063,189.12,189.09,0.0334706]
[1739743525093,5.2874,189.1,189.09,0.0334706]
[1739743525697,5.2872,189.11,189.09,0.0334706]
[1739743526194,0.04029063,189.12,189.09,0.0334706]
[1739743526794,0.04029063,189.12,189.09,5.3211706]
[1739743526990,0.04029063,189.12,189.09,0.0334706]
[1739743527396,0.04029063,189.12,189.09,5.3210706]
[1739743528799,0.04029063,189.12,189.09,0.0334706]
[1739743529906,0.04029063,189.12,189.1,5.2873]
[1739743530097,0.04029063,189.12,189.09,0.0334706]
[1739743531300,5.32719063,189.12,189.09,0.0334706]
[1739743531600,0.04029063,189.12,189.09,0.0334706]
[1739743532601,0.04029063,189.12,189.1,5.2874]
[1739743533103,0.04029063,189.12,189.09,0.0334706]
[1739743533799,5.2873,189.11,189.09,0.0334706]
[1739743534000,7.82694799,189.11,189.09,0.0334706]
[1739743534603,5.2874,189.1,189.09,0.0334706]
[1739743537711,5.2891,189.04,189.01,7.27599475]
[1739743537903,7.82694799,189.07,189.01,7.27599475]
[1739743538516,7.82694799,189.09,189.02,7.82694799]
[1739743538916,0.03626039,189.07,189.04,0.03501602]
[1739743539115,5.2888,189.05,189.04,0.03501602]
[1739743541420,5.2886,189.06,189.04,0.03501602]
[1739743541822,0.03626039,189.07,189.04,0.03501602]
[1739743543224,5.32446039,189.07,189.04,0.03501602]
[1739743543824,0.03626039,189.07,189.04,5.32411602]
[1739743544123,0.03626039,189.07,189.04,7.86196401]
[1739743545328,0.03626039,189.07,189.05,5.2887]
[1739743545521,0.03626039,189.07,189.04,7.86196401]
[1739743545823,0.03626039,189.07,189.04,0.03501602]
[1739743546524,0.03626039,189.07,189.06,7.82694799]
[1739743548224,0.03626039,189.07,189.06,13.11544799]
[1739743561931,6.039e-05,189.07,189.06,13.11544799]
[1739743582653,1.6848,189.15,189.11,5.2869]
[1739743582847,1.6848,189.15,189.11,13.11384799]
[1739743583441,6.9709,189.15,189.11,7.82694799]
[1739743583646,1.6848,189.15,189.11,7.82694799]
[1739743583846,1.71987989,189.15,189.11,7.86592713]
[1739743584146,5.2863,189.14,189.11,7.86592713]
[1739743585652,5.2863,189.14,189.11,13.15302713]
[1739743586753,5.2863,189.14,189.11,7.86592713]
[1739743587052,5.2866,189.13,189.11,7.86592713]
[1739743593459,5.2866,189.13,189.11,0.03897914]
[1739743603363,5.2863,189.14,189.11,0.03897914]
[1739743604564,3.26287989,189.15,189.11,0.03897914]
[1739743604764,5.2866,189.13,189.11,0.03897914]
[1739743606063,5.2866,189.13,189.11,7.86592713]
[1739743607666,5.2868,189.12,189.11,0.03897914]
[1739743608560,5.2866,189.13,189.11,0.03897914]
[1739743609161,3.26287989,189.15,189.11,7.86592713]
[1739743610261,3.26287989,189.15,189.13,7.82694799]
[1739743612665,8.54887989,189.15,189.13,7.82694799]
[1739743613261,3.26287989,189.15,189.13,7.82694799]
[1739743614160,0.03507989,189.15,189.13,7.82694799]
[1739743614367,0.03507989,189.15,189.14,5.2863]
[1739743617072,31.43467619,189.2,189.15,5.2857]
[1739743617267,31.43467619,189.2,189.19,7.82694799]
[1739743618069,31.43467619,189.2,189.15,7.82694799]
[1739743618269,7.82694799,189.19,189.18,0.03524132]
[1739743618469,7.82694799,189.19,189.13,7.82694799]
[1739743618771,5.2858,189.16,189.13,7.82694799]
[1739743619576,5.32073508,189.16,189.13,7.86259746]
[1739743619774,0.03493508,189.16,189.13,13.14899746]
[1739743620675,0.03493508,189.16,189.15,7.82694799]
[1739743630986,0.03493508,189.16,189.15,13.11294799]
[1739743656502,0.03493508,189.16,189.15,7.82694799]
[1739743660506,0.03493508,189.16,189.13,0.03564947]
[1739743662403,7.82694799,189.15,189.13,0.03564947]
[1739743662603,9.39164799,189.15,189.13,0.03564947]
[1739743663001,5.2863,189.14,189.13,0.03564947]
[1739743676616,5.32073508,189.16,189.13,0.03564947]
[1739743677315,5.286,189.15,189.13,0.03564947]
[1739743678308,5.2863,189.14,189.13,0.03564947]
[1739743690817,13.11304799,189.15,189.13,0.03564947]
[1739743691120,7.82694799,189.15,189.13,0.03564947]
[1739743691520,5.2863,189.14,189.13,0.03564947]
[1739743693224,5.2882,189.08,189.03,7.82694799]
[1739743693528,13.11514799,189.08,189.03,7.82694799]
[1739743693718,13.11514799,189.08,189.02,7.27599475]
[1739743693922,13.11514799,189.08,189.02,29.10397902]
[1739743694328,0.03440067,189.07,189.03,0.04047176]
[1739743694627,0.03440067,189.07,189.03,5.32957176]
[1739743695029,7.82694799,189.06,189.03,0.04047176]
[1739743695325,7.82694799,189.04,189.03,0.04047176]
[1739743696025,5.2893,189.03,189.02,29.10397902]
[1739743696230,5.2893,189.03,189.02,23.96757902]
[1739743697433,5.2896,189.02,189.01,0.03798559]
[1739743697627,13.11654799,189.02,189.01,0.03798559]
[1739743698429,13.11654799,189.02,189.01,8.559e-05]
[1739743700929,194.0,189.01,188.87,7.82694799]
[1739743701132,7.82694799,188.93,188.87,7.82694799]
[1739743701833,7.82694799,188.89,188.84,21.82798427]
[1739743702135,7.82694799,188.87,188.84,21.82798427]
[1739743702332,7.82694799,188.87,188.85,0.03830486]
[1739743702538,7.86194918,188.87,188.85,0.03830486]
[1739743705037,13.15584918,188.87,188.85,0.03830486]
[1739743705637,7.86194918,188.87,188.85,0.03830486]
[1739743706638,13.15574918,188.87,188.85,0.03830486]
[1739743706838,7.86194918,188.87,188.85,0.03830486]
[1739743707337,7.86194918,188.87,188.83,21.82798427]
[1739743707530,7.82694799,188.84,188.83,21.82798427]
[1739743707732,13.12164799,188.84,188.83,21.82798427]
[1739743709636,7.82694799,188.84,188.83,21.82798427]
[1739743710342,13.12164799,188.84,188.83,21.82798427]
[1739743711143,7.82694799,188.84,188.83,21.82798427]
[1739743711643,7.82694799,188.84,188.82,0.03394968]
[1739743716748,13.12164799,188.84,188.82,0.03394968]
[1739743716950,7.82694799,188.84,188.82,0.03394968]
[1739743720457,13.12164799,188.84,188.82,0.03394968]
[1739743720953,7.82694799,188.84,188.82,0.03394968]
[1739743722659,13.12164799,188.84,188.82,0.03394968]
[1739743727662,5.295,188.83,188.82,0.03394968]
[1739743733764,7.82694799,188.84,188.82,0.03394968]
[1739743735266,5.295,188.83,188.82,0.03394968]
[1739743735768,13.12164799,188.84,188.82,0.03394968]
[1739743736166,7.82694799,188.84,188.82,0.03394968]
[1739743736964,5.295,188.83,188.82,0.03394968]
[1739743742970,13.12164799,188.84,188.82,0.03394968]
[1739743744372,5.295,188.83,188.82,0.03394968]
[1739743747778,7.82694799,188.84,188.82,0.03394968]
[1739743747975,5.295,188.83,188.82,0.03394968]
[1739743750983,7.82694799,188.84,188.82,0.03394968]
[1739743751278,7.82694799,188.84,188.76,21.82798427]
[1739743751481,7.82694799,188.78,188.76,21.82798427]
[1739743753381,7.82694799,188.78,188.74,5.2974]
[1739743753577,7.82694799,188.76,188.74,5.2974]
[1739743756274,7.82694799,188.76,188.72,4.9645]
[1739743756479,7.82694799,188.76,188.72,10.2625]
[1739743756681,7.82694799,188.76,188.72,4.9645]
[1739743757884,7.82694799,188.76,188.73,5.2976]
[1739743758685,7.82694799,188.76,188.72,4.9645]
[1739743758882,7.82694799,188.74,188.69,21.82798427]
[1739743759079,7.82694799,188.72,188.69,7.22839856]
[1739743760487,13.12504799,188.72,188.69,7.22839856]
[1739743760982,7.82694799,188.72,188.69,7.22839856]
[1739743761183,7.82694799,188.72,188.69,12.52719856]
[1739743761787,7.82694799,188.72,188.69,5.2988]
[1739743762990,0.03941936,188.73,188.72,5.298]
[1739743765491,0.03941936,188.73,188.68,5.2991]
[1739743765690,7.82694799,188.69,188.66,4.7889]
[1739743766895,7.82694799,188.71,188.66,4.7889]
[1739743767395,7.82694799,188.71,188.68,5.2989]
[1739743769597,7.82694799,188.71,188.69,5.2988]
[1739743774194,7.82694799,188.71,188.68,5.299]
[1739743775299,7.86636735,188.73,188.67,7.82694799]
[1739743775898,7.86636735,188.73,188.71,5.2981]
[1739743777999,7.86636735,188.73,188.67,7.82694799]
[1739743778798,7.86636735,188.73,188.71,5.2981]
[1739743778990,7.86636735,188.73,188.67,7.82694799]
[1739743779594,7.86636735,188.73,188.72,5.298]
[1739743780002,0.03941936,188.73,188.72,5.298]
[1739743782602,7.82694799,188.75,188.74,5.2975]
[1739743782802,7.82694799,188.77,188.69,7.82694799]
[1739743783400,7.82694799,188.77,188.71,7.82694799]
[1739743783703,0.03899513,188.76,188.75,5.297]
[1739743784400,0.03899513,188.76,188.74,5.2974]
[1739743784903,0.03899513,188.76,188.75,5.2972]
[1739743790605,0.03899513,188.76,188.75,13.12414799]
[1739743791304,0.03899513,188.76,188.75,5.2972]
[1739743802411,0.03899513,188.76,188.75,13.12414799]
[1739743815514,0.03899513,188.76,188.72,1.6414172]
[1739743815819,7.82694799,188.75,188.72,5.3371172]
[1739743816616,7.82694799,188.73,188.72,0.0393172]
[1739743817014,5.298,188.72,188.71,29.05638283]
[1739743817209,7.82694799,188.73,188.7,58.20795806]
[1739743817411,7.82694799,188.71,188.68,51.91194108]
[1739743817607,4.9326,188.75,188.68,38.17742877]
[1739743817608,13.12584799,188.69,188.68,38.17742877]
[1739743820134,5.2992,188.68,188.67,145.20260819]
[1739743820331,5.2992,188.68,188.59,7.82694799]
[1739743820529,7.82694799,188.66,188.61,5.3011]
[1739743820828,0.03908256,188.65,188.61,7.82694799]
[1739743822328,0.03908256,188.65,188.64,5.3003]
[1739743825235,0.03908256,188.65,188.61,7.82694799]
[1739743825434,0.03908256,188.65,188.63,5.3006]
[1739743831139,0.03908256,188.65,188.62,5.3007]
[1739743831442,0.03908256,188.65,188.59,7.82694799]
[1739743832646,5.33928256,188.65,188.6,5.3014]
[1739743832838,5.33928256,188.65,188.59,7.82694799]
[1739743833037,0.03908256,188.65,188.61,5.3009]
[1739743835051,0.03908256,188.65,188.59,7.82694799]
[1739743835247,5.33928256,188.65,188.59,7.82694799]
[1739743836650,5.33928256,188.65,188.6,5.3013]
[1739743837852,5.33928256,188.65,188.61,5.3011]
[1739743838251,5.33928256,188.65,188.59,7.82694799]
[1739743839246,5.33928256,188.65,188.61,5.301]
[1739743839753,0.03908256,188.65,188.64,5.3003]
[1739743839950,0.03908256,188.65,188.63,7.82694799]
[1739743840152,0.03908256,188.65,188.61,7.82694799]
[1739743840451,0.03908256,188.65,188.59,7.82694799]
[1739743840853,0.03908256,188.65,188.61,5.3008]
[1739743841052,7.82694799,188.64,188.57,11.04954799]
[1739743841755,13.12744799,188.64,188.59,5.3016]
[1739743842452,7.82694799,188.62,188.59,5.3016]
[1739743847756,7.82694799,188.62,188.57,11.04954799]
[1739743848859,7.82694799,188.64,188.57,11.04954799]
[1739743849661,7.82694799,188.64,188.6,5.3014]
[1739743851063,13.12724799,188.64,188.6,5.3014]
[1739743851665,7.82694799,188.64,188.6,5.3014]
[1739743851862,7.82694799,188.64,188.59,5.3016]
[1739743852764,5.3006,188.63,188.59,5.3016]
[1739743853661,7.82694799,188.64,188.6,5.3014]
[1739743854066,13.12744799,188.64,188.6,5.3014]
[1739743854262,7.82694799,188.62,188.58,5.3019]
[1739743854463,7.82694799,188.6,188.51,36.95143861]
[1739743854664,7.82694799,188.56,188.51,29.12449062]
[1739743856067,7.82694799,188.56,188.53,5.3032]
[1739743857367,7.82694799,188.56,188.54,5.303]
[1739743857570,0.03473915,188.57,188.54,5.303]
[1739743858070,7.82694799,188.56,188.51,13.13074799]
[1739743858267,7.82694799,188.56,188.48,3.1556]
[1739743858268,7.82694799,188.54,188.48,3.1556]
[1739743858468,7.82694799,188.52,188.48,3.1556]
[1739743858669,7.82694799,188.52,188.48,5.3047]
[1739743860677,7.82694799,188.52,188.48,8.4551]
[1739743861877,0.03340215,188.53,188.48,8.4551]
[1739743862577,5.33680215,188.53,188.48,8.4551]
[1739743862775,0.03340215,188.53,188.48,8.4551]
[1739743863176,5.33680215,188.53,188.48,8.4551]
[1739743863475,5.33680215,188.53,188.49,5.3045]
[1739743863676,0.03340215,188.53,188.49,5.3045]
[1739743864378,0.03340215,188.53,188.51,7.82694799]
[1739743864577,7.82694799,188.56,188.51,7.82694799]
[1739743864974,13.12974799,188.56,188.51,13.13084799]
[1739743865674,0.03664135,188.55,188.52,0.03976326]
[1739743866076,0.03664135,188.55,188.53,5.3033]
[1739743866379,7.82694799,188.54,188.52,0.03976326]
[1739743866781,5.3034,188.53,188.52,0.03976326]
[1739743868376,13.13004799,188.54,188.52,0.03976326]
[1739743869481,5.3034,188.53,188.52,0.03976326]
[1739743869681,7.82694799,188.54,188.52,0.03976326]
[1739743871075,5.3034,188.53,188.52,0.03976326]
[1739743881791,7.82694799,188.54,188.39,7.82694799]
[1739743882091,7.82694799,188.45,188.37,11.07554799]
[1739743882889,7.82694799,188.45,188.41,5.3066]
[1739743883089,0.03450261,188.43,188.37,11.07554799]
[1739743883790,0.03450261,188.43,188.41,5.3065]
[1739743884190,0.03450261,188.43,188.37,11.07554799]
[1739743884391,0.03450261,188.43,188.39,7.82694799]
[1739743884687,7.8614506,188.43,188.37,11.07554799]
[1739743884891,7.8614506,188.43,188.37,3.2486]
[1739743885093,7.8614506,188.43,188.38,5.3074]
[1739743885492,13.1676506,188.43,188.38,5.3075]
[1739743885693,7.82694799,188.41,188.37,3.2486]
[1739743885992,7.82694799,188.39,188.33,7.82694799]
[1739743886492,0.03990423,188.38,188.34,5.3085]
[1739743887293,0.03990423,188.38,188.33,5.309]
[1739743887487,7.82694799,188.37,188.33,5.309]
[1739743889599,7.82694799,188.37,188.31,7.82694799]
[1739743890295,7.82694799,188.37,188.33,5.309]
[1739743890899,7.82694799,188.37,188.29,4.9566]
[1739743891099,7.82694799,188.3,188.13,65.44207237]
[1739743891291,7.82694799,188.24,188.17,7.82694799]
[1739743891491,0.04052642,188.23,188.17,7.82694799]
[1739743891694,7.82694799,188.26,188.17,7.82694799]
[1739743891999,0.03657486,188.22,188.17,7.82694799]
[1739743892197,0.03657486,188.22,188.17,13.14044799]
[1739743892401,0.03657486,188.22,188.17,7.82694799]
[1739743892994,7.82694799,188.2,188.15,3.1548]
[1739743893202,7.82694799,188.18,188.15,3.1548]
[1739743894205,7.82694799,188.16,188.15,3.1548]
[1739743895899,7.82694799,188.16,188.09,5.3156]
[1739743896094,7.82694799,188.14,188.09,5.3156]
[1739743896501,7.82694799,188.16,188.09,5.3156]
[1739743896803,0.03410305,188.17,188.09,12.35713293]
[1739743897206,0.03410305,188.17,188.11,5.3152]
[1739743897396,0.03410305,188.17,188.12,1.6165]
[1739743898099,0.03410305,188.17,188.12,6.9314]
[1739743898302,0.03410305,188.17,188.12,1.6165]
[1739743899307,12.35713293,188.21,188.13,5.3144]
[1739743899907,5.3127,188.2,188.13,5.3144]
[1739743900506,5.3127,188.2,188.15,0.03389503]
[1739743900507,0.03586756,188.18,188.15,0.03389503]
[1739743903407,5.3138,188.16,188.15,0.03389503]
[1739743905506,5.3136,188.17,188.15,0.03389503]
[1739743906105,12.39300049,188.18,188.15,0.03389503]
[1739743907408,17.70630049,188.18,188.15,0.03389503]
[1739743907910,12.39300049,188.18,188.15,0.03389503]
[1739743908707,17.70650049,188.18,188.15,0.03389503]
[1739743909411,5.3136,188.17,188.15,0.03389503]
[1739743909611,12.39300049,188.18,188.15,0.03389503]
[1739743910011,5.3138,188.16,188.15,0.03389503]
[1739743911713,5.3135,188.17,188.15,0.03389503]
[1739743911912,12.39300049,188.18,188.15,0.03389503]
[1739743912412,5.3135,188.17,188.15,0.03389503]
[1739743915809,12.39300049,188.18,188.15,0.03389503]
[1739743916011,0.03586756,188.18,188.15,0.03389503]
[1739743916814,7.94251879,188.18,188.15,0.03389503]
[1739743917017,7.94251879,188.18,188.16,5.3137]
[1739743918414,7.94251879,188.18,188.15,5.34789503]
[1739743919713,7.94251879,188.18,188.15,0.03389503]
[1739743919918,12.35713293,188.28,188.15,0.03389503]
[1739743920119,7.90665123,188.2,188.13,7.90665123]
[1739743920619,7.90665123,188.18,188.15,5.3141]
[1739743921215,7.94501705,188.18,188.15,5.35338128]
[1739743922614,7.94501705,188.18,188.16,5.3138]
[1739743927517,0.03836582,188.18,188.17,5.3135]
[1739743927717,58.87504185,188.23,188.17,7.90665123]
[1739743927918,53.71704185,188.23,188.21,7.90665123]
[1739743928227,51.13844185,188.23,188.21,7.90665123]
[1739743928617,79.43056278,188.24,188.21,7.90665123]
[1739743928816,52.51009049,188.24,188.23,7.90665123]
[1739743929114,28.01993234,188.24,188.23,13.21845123]
[1739743929318,12.10996113,188.25,188.23,7.90665123]
[1739743929620,3.40926113,188.25,188.23,7.90665123]
[1739743930021,3.40926113,188.25,188.24,5.3115]
[1739743930823,0.03565957,188.26,188.24,5.3115]
[1739743931626,0.03565957,188.26,188.23,45.96891993]
[1739743931823,0.03565957,188.26,188.25,5.3113]
[1739743932526,0.03565957,188.26,188.24,5.3115]
[1739743934621,0.03565957,188.26,188.25,5.3113]
[1739743935029,1.6285,188.37,188.23,12.33529502]
[1739743935223,1.6285,188.37,188.28,12.33529502]
[1739743935631,1.5841,188.38,188.31,12.33529502]
[1739743935831,1.7109,188.47,188.37,12.33529502]
[1739743936129,1.5767,188.46,188.37,12.33529502]
[1739743936332,5.3062,188.43,188.4,0.03714393]
[1739743937122,5.3068,188.41,188.4,0.03714393]
[1739743937326,12.36932678,188.44,188.31,12.33529502]
[1739743937528,12.33529502,188.41,188.28,12.33529502]
[1739743937722,12.33529502,188.38,188.25,12.33529502]
[1739743937931,12.33529502,188.38,188.29,7.31808957]
[1739743937932,1.5767,188.37,188.29,7.31808957]
[1739743938531,0.03643006,188.35,188.31,0.03611252]
[1739743941231,0.03643006,188.35,188.31,12.37140754]
[1739743941434,0.03643006,188.35,188.34,17.64399502]
[1739743941636,3.257,188.45,188.34,12.33529502]
[1739743941837,5.3059,188.44,188.37,5.3079]
[1739743942530,3.257,188.45,188.37,12.33529502]
[1739743942731,1.6381,188.45,188.37,12.33529502]
[1739743942938,0.03710769,188.43,188.39,0.03465819]
[1739743943441,0.03710769,188.43,188.4,12.33529502]
[1739743944939,0.03710769,188.43,188.42,5.3065]
[1739743945134,0.03710769,188.43,188.4,12.33529502]
[1739743945135,12.33529502,188.62,188.4,12.33529502]
[1739743945339,4.73,188.61,188.48,12.33529502]
[1739743945842,5.3023,188.57,188.48,17.64009502]
[1739743946238,0.03714888,188.54,188.51,0.03351721]
[1739743947741,0.03714888,188.54,188.52,5.3036]
[1739743948545,0.03714888,188.54,188.51,0.03351721]
[1739743951243,0.03714888,188.54,188.51,5.33731721]
[1739743951752,4.888e-05,188.54,188.53,17.63869502]
[1739743951948,3.1656,188.61,188.53,12.33529502]
[1739743952243,1.6864,188.69,188.57,12.33529502]
[1739743952445,1.6864,188.69,188.54,12.33529502]
[1739743952446,12.33529502,188.65,188.54,12.33529502]
[1739743952644,12.33529502,188.65,188.51,12.33529502]
[1739743953147,0.03868905,188.6,188.56,0.03482801]
[1739743955853,5.34018905,188.6,188.56,0.03482801]
[1739743956053,0.03868905,188.6,188.56,0.03482801]
[1739743956354,3.2383,188.59,188.48,12.33529502]
[1739743956651,3.2383,188.59,188.54,5.3031]
[1739743956854,3.2383,188.59,188.51,12.33529502]
[1739743957251,3.2383,188.59,188.54,5.3031]
[1739743957455,0.04016392,188.57,188.54,12.33529502]
[1739743957655,15.56079502,188.68,188.54,12.33529502]
[1739743957855,15.56079502,188.68,188.57,12.33529502]
[1739743958056,0.0383165,188.63,188.57,12.33529502]
[1739743958354,0.0383165,188.63,188.61,0.03591214]
[1739743960855,0.0383165,188.63,188.54,12.33529502]
[1739743961059,5.3014,188.6,188.54,17.63839502]
[1739743961257,15.56079502,188.68,188.54,12.33529502]
[1739743961459,1.7037,188.67,188.54,12.33529502]
[1739743962049,0.03941467,188.62,188.59,0.03730617]
[1739743964557,0.03941467,188.62,188.6,5.3014]
[1739743965357,0.03941467,188.62,188.59,0.03730617]
[1739743965561,0.03941467,188.62,188.61,5.3011]
[1739743966454,0.03941467,188.62,188.59,0.03730617]
[1739743974467,0.03941467,188.62,188.6,12.33529502]
[1739743974961,0.03941467,188.62,188.6,17.63659502]
[1739743975266,1.467e-05,188.62,188.6,12.33529502]
[1739743975562,1.467e-05,188.62,188.61,5.3011]
[1739743976163,1.6088,188.7,188.6,12.33529502]
[1739743976164,131.37529502,188.77,188.6,12.33529502]
[1739743976368,1.5809,188.73,188.64,12.33529502]
[1739743976768,5.2982,188.72,188.65,5.2998]
[1739743976964,1.5809,188.73,188.61,12.33529502]
[1739743977165,1.5809,188.73,188.64,12.33529502]
[1739743977366,0.03596327,188.69,188.65,0.03758485]
[1739743979170,0.03596327,188.69,188.67,12.33529502]
[1739743979466,0.03596327,188.69,188.68,5.2992]
[1739743979870,0.03596327,188.69,188.67,17.63469502]
[1739743980469,0.03596327,188.69,188.67,12.33529502]
[1739743980664,0.03596327,188.69,188.65,0.03758485]
[1739743981065,5.33486327,188.69,188.65,0.03758485]
[1739743981562,0.03596327,188.69,188.65,7.35567442]
[1739743984868,0.03596327,188.69,188.65,0.03758485]
[1739743985073,5.33486327,188.69,188.65,0.03758485]
[1739743986474,5.2992,188.68,188.65,0.03758485]
[1739743986677,0.03596327,188.69,188.65,0.03758485]
[1739743991175,0.03596327,188.69,188.66,5.2995]
[1739743991377,0.03596327,188.69,188.65,0.03758485]
[1739743991772,0.03596327,188.69,188.68,5.2992]
[1739743995677,0.03596327,188.69,188.67,12.33529502]
[1739743995877,0.03596327,188.69,188.65,0.03758485]
[1739743996874,0.03596327,188.69,188.66,5.2995]
[1739743997274,0.03596327,188.69,188.65,0.03758485]
[1739743997779,5.2999,188.66,188.61,7.31808957]
[1739743998077,15.61789502,188.68,188.61,7.31808957]
[1739743998379,3.2826,188.68,188.61,7.31808957]
[1739743998578,5.2995,188.67,188.61,7.31808957]
[1739743998877,5.2995,188.67,188.62,0.0408267]
[1739743999872,3.2826,188.68,188.62,0.0408267]
[1739744000073,5.3,188.66,188.62,0.0408267]
[1739744000270,3.2826,188.68,188.62,0.0408267]
[1739744000473,15.61789502,188.68,188.56,7.31808957]
[1739744000679,5.3005,188.64,188.56,7.31808957]
[1739744000878,15.61789502,188.68,188.56,7.31808957]
[1739744001669,0.03945238,188.64,188.6,0.03351793]
[1739744002074,5.33995238,188.64,188.6,0.03351793]
[1739744002680,5.3006,188.63,188.6,0.03351793]
[1739744002880,0.03945238,188.64,188.6,0.03351793]
[1739744003575,5.33975238,188.64,188.6,0.03351793]
[1739744004384,0.03945238,188.64,188.6,0.03351793]
[1739744004979,0.03945238,188.64,188.61,5.3011]
[1739744007081,0.03945238,188.64,188.6,0.03351793]
[1739744007287,0.03945238,188.64,188.63,5.3006]
[1739744009187,12.33529502,188.74,188.61,12.33529502]
[1739744009188,12.33529502,188.77,188.61,12.33529502]
[1739744009384,12.33529502,188.77,188.66,12.33529502]
[1739744010085,198.8051,188.79,188.7,5.2984]
[1739744010287,0.03969894,188.73,188.7,0.04035985]
[1739744010888,0.03969894,188.73,188.71,5.298]
[1739744012182,0.03969894,188.73,188.71,5.2983]
[1739744012582,0.03969894,188.73,188.72,5.298]
[1739744012987,0.03969894,188.73,188.7,0.04035985]
[1739744013887,0.03969894,188.73,188.72,5.298]
[1739744016089,0.03969894,188.73,188.71,5.2983]
[1739744016286,0.03969894,188.73,188.7,0.04035985]
[1739744023006,5.33759894,188.73,188.7,0.04035985]
[1739744024510,5.2983,188.71,188.65,5.2999]
[1739744024709,0.03969894,188.73,188.63,12.33529502]
[1739744024912,1.584,188.72,188.62,7.31808957]
[1739744025307,1.5618,188.71,188.62,12.61888957]
[1739744025504,1.5618,188.71,188.62,7.31808957]
[1739744025710,0.03521416,188.68,188.65,0.03906118]
[1739744035927,0.03521416,188.68,188.66,5.2995]
[1739744036122,0.03521416,188.68,188.65,0.03906118]
[1739744036621,5.33441416,188.68,188.65,0.03906118]
[1739744040426,7.89953053,188.68,188.61,7.86431637]
[1739744040821,5.3,188.65,188.61,7.86431637]
[1739744041221,7.89953053,188.68,188.61,7.86431637]
[1739744041721,7.89953053,188.68,188.63,0.03906742]
[1739744042133,5.2997,188.66,188.63,0.03906742]
[1739744043031,13.19883053,188.68,188.63,0.03906742]
[1739744043224,7.89953053,188.68,188.63,0.03906742]
[1739744043931,5.2997,188.67,188.63,0.03906742]
[1739744045431,5.2998,188.66,188.63,0.03906742]
[1739744045632,7.89953053,188.68,188.63,0.03906742]
[1739744046133,5.2996,188.67,188.63,0.03906742]
[1739744048335,5.2999,188.66,188.63,0.03906742]
[1739744049132,7.89953053,188.68,188.63,0.03906742]
[1739744049338,5.3001,188.65,188.63,0.03906742]
[1739744049931,7.86431637,188.66,188.59,7.86431637]
[1739744050127,5.3008,188.63,188.57,13.16651637]
[1739744050333,7.86431637,188.62,188.56,7.2897712]
[1739744050638,3.1824,188.61,188.56,7.2897712]
[1739744051334,0.03480814,188.6,188.57,0.03848651]
[1739744052337,0.03480814,188.6,188.57,7.90280288]
[1739744052733,0.03480814,188.6,188.59,13.16601637]
[1739744053131,0.03480814,188.6,188.57,7.90280288]
[1739744053333,0.03480814,188.6,188.58,5.3019]
[1739744054136,0.03480814,188.6,188.57,7.90280288]
[1739744054338,0.03480814,188.6,188.57,13.20500288]
[1739744054837,0.03480814,188.6,188.57,7.90280288]
[1739744055434,0.03480814,188.6,188.57,0.03848651]
[1739744056633,0.03480814,188.6,188.59,7.86431637]
[1739744058035,0.03480814,188.6,188.59,13.16601637]
[1739744059840,12.71441637,188.7,188.59,7.86431637]
[1739744060035,12.71441637,188.7,188.63,13.16471637]
[1739744060236,5.2992,188.68,188.61,7.86431637]
[1739744060432,5.2992,188.68,188.62,5.3008]
[1739744060843,13.16351637,188.68,188.62,5.3008]
[1739744061045,0.03787709,188.67,188.63,0.03946313]
[1739744061742,0.03787709,188.67,188.63,5.34006313]
[1739744062244,0.03787709,188.67,188.64,5.3003]
[1739744062542,0.03787709,188.67,188.65,7.86431637]
[1739744069340,0.03787709,188.67,188.65,13.16431637]
[1739744069845,0.03787709,188.67,188.66,5.2997]
[1739744075553,7.709e-05,188.67,188.66,5.2997]
[1739744075757,3.2977,188.75,188.71,5.2982]
[1739744075958,3.2977,188.75,188.71,13.16251637]
[1739744076160,3.2977,188.75,188.71,7.86431637]
[1739744076551,7.86431637,188.78,188.71,7.86431637]
[1739744076861,0.03649074,188.76,188.73,0.03597883]
[1739744077960,7.90080711,188.76,188.73,0.03597883]
[1739744078158,3.1959,188.75,188.67,7.86431637]
[1739744078361,4.7547,188.75,188.67,7.86431637]
[1739744078563,5.2976,188.74,188.67,7.86431637]
[1739744079162,0.04023835,188.72,188.67,13.16351637]
[1739744079364,0.04023835,188.72,188.69,0.03945002]
[1739744083861,0.04023835,188.72,188.69,5.33825002]
[1739744089566,0.04023835,188.72,188.69,7.90376639]
[1739744089773,0.04023835,188.72,188.71,13.16261637]
[1739744101480,3.835e-05,188.72,188.71,13.16261637]